fUSD/lending_fUSD_20250120
["ID","MTS","AMOUNT","RATE_DAILY","PERIOD"]
[349670948,1737365445563,-1223.26,0.00020585,2]
[349670949,1737365445572,-500.0,0.00020585,2]
[349670950,1737365445581,-1945.23,0.00020585,2]
[349670951,1737365445590,-1539.61,0.00020585,2]
[349670952,1737365445599,-233.20058958,0.00020585,2]
[349670953,1737365445615,-4743.0,0.00020585,2]
[349670954,1737365445625,-500.0,0.00020585,2]
[349670955,1737365445634,-500.0,0.00020585,2]
[349670956,1737365445645,-1865.32,0.00020585,2]
[349670957,1737365445654,-500.0,0.00020585,2]
[349670958,1737365445663,-500.0,0.00020585,2]
[349670959,1737365445673,-1234.45,0.00020585,2]
[349670960,1737365445682,-500.0,0.00020585,2]
[349670961,1737365445692,-2533.52,0.00020585,2]
[349670962,1737365445701,-596.83,0.00020585,2]
[349670963,1737365445711,-3294.27,0.00020585,2]
[349670964,1737365445720,-811.79,0.00020585,2]
[349670965,1737365445730,-798.05,0.00020585,2]
[349670966,1737365445739,-2186.34,0.00020585,2]
[349670967,1737365445749,-500.0,0.00020585,2]
[349670968,1737365445758,-500.0,0.00020585,2]
[349670969,1737365445768,-861.93,0.00020585,2]
[349670970,1737365445778,-500.0,0.00020585,2]
[349670971,1737365445788,-3579.84,0.00020585,2]
[349670972,1737365445797,-985.66,0.00020585,2]
[349670973,1737365445806,-500.0,0.00020585,2]
[349670974,1737365445815,-500.0,0.00020586,2]
[349670975,1737365445825,-500.0,0.00020586,2]
[349670976,1737365445835,-500.0,0.00020586,2]
[349670977,1737365445844,-200.0,0.00020586,2]
[349670978,1737365445856,-500.0,0.00020586,2]
[349670979,1737365445865,-500.0,0.00020586,2]
[349670980,1737365445875,-500.0,0.00020586,2]
[349670981,1737365445885,-500.0,0.00020586,2]
[349670982,1737365445895,-631.63,0.00020586,2]
[349670983,1737365445905,-500.0,0.00020586,2]
[349670984,1737365445915,-500.0,0.00020586,2]
[349670985,1737365445924,-500.0,0.00020586,2]
[349670986,1737365445933,-500.0,0.00020586,2]
[349670987,1737365445943,-500.0,0.00020586,2]
[349670988,1737365445952,-500.0,0.00020586,2]
[349670989,1737365445962,-500.0,0.00020586,2]
[349670990,1737365445971,-500.0,0.00020586,2]
[349670992,1737365445981,-500.0,0.00020586,2]
[349670994,1737365445991,-1283.32,0.00020586,2]
[349670995,1737365446001,-1484.76,0.00020586,2]
[349670996,1737365446010,-500.0,0.00020586,2]
[349670997,1737365446020,-1000.0,0.00020586,2]
[349670998,1737365446030,-500.0,0.00020586,2]
[349670999,1737365446039,-500.0,0.00020586,2]
[349671000,1737365446048,-500.0,0.00020586,2]
[349671001,1737365446057,-2003.62,0.00020586,2]
[349671002,1737365446067,-1002.31,0.00020586,2]
[349671003,1737365446078,-500.0,0.00020586,2]
[349671004,1737365446088,-475.34801207,0.00020586,2]
[349671005,1737365446098,-500.0,0.00020586,2]
[349671006,1737365446110,-202.40737307,0.00020586,2]
[349671007,1737365446119,-500.0,0.00020586,2]
[349671008,1737365446128,-500.0,0.00020587,2]
[349671009,1737365446138,-500.0,0.00020587,2]
[349671010,1737365446147,-500.0,0.00020587,2]
[349671011,1737365446155,-500.0,0.00020587,2]
[349671012,1737365446165,-500.0,0.00020587,2]
[349671013,1737365446174,-659.34,0.00020587,2]
[349671014,1737365446183,-542.29,0.00020587,2]
[349671015,1737365446193,-656.17,0.00020587,2]
[349671016,1737365446203,-745.86,0.00020587,2]
[349671017,1737365446212,-500.0,0.00020587,2]
[349671018,1737365446221,-218.37623594,0.00020587,2]
[349671019,1737365446231,-500.0,0.00020587,2]
[349671020,1737365446241,-500.0,0.00020587,2]
[349671021,1737365446250,-566.51,0.00020587,2]
[349671022,1737365446259,-500.0,0.00020587,2]
[349671023,1737365446269,-500.0,0.00020587,2]
[349671024,1737365446281,-500.0,0.00020587,2]
[349671025,1737365446290,-528.07,0.00020587,2]
[349671026,1737365446299,-500.0,0.00020587,2]
[349671027,1737365446309,-500.0,0.00020587,2]
[349671028,1737365446318,-775.99,0.00020587,2]
[349671029,1737365446328,-500.0,0.00020587,2]
[349671030,1737365446337,-500.0,0.00020587,2]
[349671031,1737365446346,-500.0,0.00020587,2]
[349671032,1737365446360,-500.0,0.00020587,2]
[349671033,1737365446370,-673.85,0.00020587,2]
[349671034,1737365446379,-500.0,0.00020587,2]
[349671035,1737365446389,-910.35,0.00020587,2]
[349671036,1737365446398,-550.45,0.00020587,2]
[349671037,1737365446408,-500.0,0.00020587,2]
[349671038,1737365446417,-500.0,0.00020587,2]
[349671039,1737365446427,-644.53,0.00020587,2]
[349671040,1737365446437,-500.0,0.00020587,2]
[349671041,1737365446446,-726.4306955,0.00020593,2]
[349671042,1737365446456,-369.20787983,0.00020595,2]
[349671043,1737365446465,-170.11,0.00020647,2]
[349671044,1737365446475,-202.38831038,0.00020673,2]
[349671045,1737365446484,-16091.0,0.000207,2]
[349671046,1737365446493,-200.0,0.000207,7]
[349671047,1737365446503,-369.20787983,0.00020758,2]
[349671048,1737365446512,-753.92,0.00020772,2]
[349671049,1737365446521,-350.3055577,0.00020797,2]
[349671051,1737365446536,-6110.13929781,0.000208,2]
[349671054,1737365446567,-133.76839249,0.000208,2]
[349671055,1737365446577,-500.0,0.000208,7]
[349671056,1737365446586,-167.08002351,0.000208,2]
[349671057,1737365446595,-355.48532246,0.00020803,2]
[349671058,1737365446609,-85.53065633,0.00020803,2]
[349671059,1737365446618,-202.38831038,0.00020809,2]
[349671060,1737365446627,-726.4306955,0.00020811,2]
[349671061,1737365446637,-350.3055577,0.00020818,2]
[349671062,1737365446646,-441.01597879,0.00020855,2]
[349671063,1737365446656,-6203.00153273,0.00020857,2]
[349671064,1737365446779,-324.23391,0.0002031,2]
[349671065,1737365446791,-175.76609,0.0002031,2]
[349671066,1737365446801,-19006.10846727,0.00020857,2]
[349671067,1737365446810,-1008.81,0.00020858,2]
[349671068,1737365446820,-647.42,0.00020858,2]
[349671069,1737365446829,-988.15,0.00020858,2]
[349671070,1737365446839,-546.62,0.00020858,2]
[349671071,1737365446849,-1162.42,0.00020858,2]
[349671072,1737365446860,-500.0,0.00020858,2]
[349671073,1737365446870,-824.5,0.00020858,2]
[349671074,1737365446880,-917.03,0.00020858,2]
[349671075,1737365446889,-1250.67544273,0.00020858,2]
[349671076,1737365446935,-500.0,0.00020311,2]
[349671077,1737365446945,-173.53999996,0.00020585,2]
[349671078,1737365446962,-289.90853143,0.00020585,2]
[349671079,1737365446974,-462.23455727,0.00020858,2]
[349671080,1737365446984,-500.0,0.00020858,2]
[349671081,1737365446994,-500.0,0.00020858,2]
[349671082,1737365447003,-657.21,0.00020858,2]
[349671083,1737365447013,-500.0,0.00020858,2]
[349671084,1737365447022,-1436.78,0.00020858,2]
[349671085,1737365447033,-713.45,0.00020858,2]
[349671086,1737365447042,-768.87,0.00020858,2]
[349671087,1737365447052,-500.0,0.00020858,2]
[349671088,1737365447062,-500.0,0.00020858,2]
[349671089,1737365447071,-988.18,0.00020858,2]
[349671090,1737365447081,-1010.25,0.00020858,2]
[349671091,1737365447090,-500.0,0.00020858,2]
[349671092,1737365447100,-527.41,0.00020858,2]
[349671093,1737365447112,-1233.41,0.00020858,2]
[349671094,1737365447122,-500.0,0.00020858,2]
[349671096,1737365447131,-2166.02,0.00020858,2]
[349671097,1737365447141,-878.47,0.00020858,2]
[349671099,1737365447150,-500.0,0.00020858,2]
[349671100,1737365447160,-1177.32,0.00020858,2]
[349671101,1737365447170,-599.48,0.00020858,2]
[349671102,1737365447179,-500.0,0.00020859,2]
[349671103,1737365447189,-500.0,0.00020859,2]
[349671104,1737365447198,-500.0,0.00020859,2]
[349671105,1737365447207,-500.0,0.00020859,2]
[349671106,1737365447216,-500.0,0.00020859,2]
[349671107,1737365447227,-500.0,0.00020859,2]
[349671108,1737365447236,-500.0,0.00020859,2]
[349671109,1737365447246,-422.50896756,0.00020859,2]
[349671110,1737365447255,-500.0,0.00020859,2]
[349671111,1737365447265,-500.0,0.00020859,2]
[349671112,1737365447275,-500.0,0.00020859,2]
[349671113,1737365447288,-500.0,0.00020859,2]
[349671114,1737365447414,-500.0,0.00020859,2]
[349671115,1737365447424,-521.5,0.00020859,2]
[349671116,1737365447434,-500.0,0.00020859,2]
[349671117,1737365447444,-619.93,0.00020859,2]
[349671118,1737365447454,-500.0,0.00020859,2]
[349671119,1737365447464,-383.501717,0.00020859,2]
[349671120,1737365447474,-500.0,0.00020859,2]
[349671121,1737365447484,-500.0,0.00020859,2]
[349671122,1737365447494,-576.89,0.00020859,2]
[349671123,1737365447503,-771.132688,0.00020859,2]
[349671124,1737365447513,-500.0,0.00020859,2]
[349671125,1737365447523,-500.0,0.00020859,2]
[349671126,1737365447532,-724.53,0.00020859,2]
[349671127,1737365447543,-500.0,0.00020859,2]
[349671128,1737365447555,-610.91,0.00020859,2]
[349671129,1737365447565,-730.93,0.00020859,2]
[349671130,1737365447574,-529.13,0.00020859,2]
[349671131,1737365447583,-500.0,0.00020859,2]
[349671132,1737365447593,-574.02,0.00020859,2]
[349671133,1737365447603,-500.0,0.00020859,2]
[349671134,1737365447613,-580.86,0.00020859,2]
[349671135,1737365447623,-580.81,0.00020859,2]
[349671136,1737365447632,-593.51,0.00020859,2]
[349671137,1737365447642,-500.0,0.00020859,2]
[349671138,1737365447651,-500.0,0.00020859,2]
[349671139,1737365447661,-500.0,0.00020859,2]
[349671140,1737365447671,-500.0,0.00020859,2]
[349671141,1737365447681,-562.44,0.00020859,2]
[349671142,1737365447691,-500.0,0.00020859,2]
[349671143,1737365447701,-955.48,0.00020859,2]
[349671144,1737365447710,-500.0,0.00020859,2]
[349671145,1737365447720,-1029.71,0.00020859,2]
[349671146,1737365447730,-581.98,0.00020859,2]
[349671147,1737365447739,-500.0,0.00020859,2]
[349671148,1737365447749,-1212.71,0.00020859,2]
[349671149,1737365447758,-500.0,0.00020859,2]
[349671150,1737365447767,-525.22,0.00020859,2]
[349671151,1737365447776,-860.88,0.00020859,2]
[349671152,1737365447786,-510.87,0.00020859,2]
[349671153,1737365447795,-815.25,0.00020859,2]
[349671154,1737365447805,-500.0,0.00020859,2]
[349671155,1737365447815,-736.74,0.00020859,2]
[349671156,1737365447825,-673.51,0.00020859,2]
[349671157,1737365447834,-500.0,0.00020859,2]
[349671158,1737365447843,-500.0,0.00020859,2]
[349671159,1737365447853,-633.08,0.00020859,2]
[349671160,1737365447866,-500.0,0.00020859,2]
[349671161,1737365447875,-500.0,0.00020859,2]
[349671162,1737365447885,-500.0,0.00020859,2]
[349671163,1737365447894,-1115.84,0.00020859,2]
[349671164,1737365447904,-1067.99,0.00020859,2]
[349671165,1737365447914,-500.0,0.00020859,2]
[349671166,1737365447924,-988.24,0.00020859,2]
[349671167,1737365447933,-1834.65,0.00020859,2]
[349671168,1737365447943,-500.0,0.00020859,2]
[349671169,1737365447952,-881.46,0.00020859,2]
[349671170,1737365447962,-2057.98,0.00020859,2]
[349671171,1737365447972,-500.0,0.00020859,2]
[349671172,1737365447981,-500.0,0.00020859,2]
[349671173,1737365447991,-500.0,0.00020859,2]
[349671174,1737365448000,-500.0,0.00020859,2]
[349671175,1737365448010,-500.0,0.00020859,2]
[349671176,1737365448019,-1320.04,0.00020859,2]
[349671177,1737365448029,-655.91,0.00020859,2]
[349671178,1737365448039,-514.9,0.00020859,2]
[349671179,1737365448049,-983.97,0.00020859,2]
[349671180,1737365448059,-564.46,0.00020859,2]
[349671181,1737365448068,-3420.52,0.00020859,2]
[349671182,1737365448077,-500.0,0.00020859,2]
[349671183,1737365448087,-500.0,0.00020859,2]
[349671184,1737365448097,-208.4180657,0.00020859,2]
[349671185,1737365448109,-500.0,0.00020859,2]
[349671186,1737365448119,-500.0,0.00020859,2]
[349671187,1737365448129,-651.38,0.00020859,2]
[349671188,1737365448138,-500.0,0.00020859,2]
[349671189,1737365448147,-500.0,0.00020859,2]
[349671190,1737365448157,-940.45,0.00020859,2]
[349671191,1737365448167,-923.46,0.00020859,2]
[349671192,1737365448176,-500.0,0.00020859,2]
[349671193,1737365448186,-500.0,0.00020859,2]
[349671194,1737365448196,-918.33,0.00020859,2]
[349671195,1737365448206,-1223.26,0.00020859,2]
[349671196,1737365448216,-253.4592861,0.00020859,2]
[349671197,1737365448230,-246.5407139,0.00020859,2]
[349671198,1737365448239,-1945.23,0.00020859,2]
[349671199,1737365448249,-1539.61,0.00020859,2]
[349671200,1737365448258,-3420.38383356,0.00020859,2]
[349671201,1737365448505,-195.52,0.0002031,2]
[349671202,1737365448514,-1322.61616644,0.00020859,2]
[349671203,1737365448524,-1776.85560187,0.00020859,2]
[349671204,1737365448536,-88.46439813,0.00020859,2]
[349671205,1737365448545,-500.0,0.00020859,2]
[349671206,1737365448554,-355.76070187,0.00020859,2]
[349671207,1737365448594,-144.23929813,0.00020859,2]
[349671208,1737365448606,-312.76508187,0.00020859,2]
[349671209,1737365448618,-551.409999,0.00020859,2]
[349671210,1737365448630,-370.27491913,0.00020859,2]
[349671211,1737365448640,-64.12508087,0.00020859,2]
[349671212,1737365448652,-417.78399998,0.00020859,2]
[349671213,1737365448664,-18.09091915,0.00020859,2]
[349671214,1737365448673,-450.86908085,0.00020859,2]
[349671215,1737365448686,-2082.65091915,0.00020859,2]
[349671216,1737365448695,-596.83,0.00020859,2]
[349671217,1737365448704,-3294.27,0.00020859,2]
[349671218,1737365448713,-811.79,0.00020859,2]
[349671219,1737365448723,-798.05,0.00020859,2]
[349671220,1737365448733,-2186.34,0.00020859,2]
[349671221,1737365448742,-500.0,0.00020859,2]
[349671222,1737365448751,-500.0,0.00020859,2]
[349671223,1737365448761,-861.93,0.00020859,2]
[349671224,1737365448770,-500.0,0.00020859,2]
[349671225,1737365448780,-3579.84,0.00020859,2]
[349671226,1737365448790,-985.66,0.00020859,2]
[349671227,1737365448800,-500.0,0.00020859,2]
[349671228,1737365448810,-500.0,0.0002086,2]
[349671229,1737365448821,-500.0,0.0002086,2]
[349671230,1737365448831,-500.0,0.0002086,2]
[349671231,1737365448841,-500.0,0.0002086,2]
[349671232,1737365448851,-500.0,0.0002086,2]
[349671233,1737365448863,-631.63,0.0002086,2]
[349671234,1737365448873,-500.0,0.0002086,2]
[349671235,1737365448883,-500.0,0.0002086,2]
[349671236,1737365448893,-500.0,0.0002086,2]
[349671237,1737365448903,-500.0,0.0002086,2]
[349671238,1737365448914,-500.0,0.0002086,2]
[349671239,1737365448924,-500.0,0.0002086,2]
[349671240,1737365448934,-500.0,0.0002086,2]
[349671241,1737365448944,-500.0,0.0002086,2]
[349671242,1737365448954,-1484.76,0.0002086,2]
[349671243,1737365448964,-500.0,0.0002086,2]
[349671244,1737365448973,-1000.0,0.0002086,2]
[349671245,1737365448983,-500.0,0.0002086,2]
[349671246,1737365448992,-500.0,0.0002086,2]
[349671247,1737365449003,-500.0,0.0002086,2]
[349671248,1737365449013,-2003.62,0.0002086,2]
[349671249,1737365449023,-1002.31,0.0002086,2]
[349671250,1737365449033,-500.0,0.0002086,2]
[349671251,1737365449043,-500.0,0.00020861,2]
[349671252,1737365449053,-500.0,0.00020861,2]
[349671253,1737365449062,-500.0,0.00020861,2]
[349671254,1737365449072,-500.0,0.00020861,2]
[349671255,1737365449082,-500.0,0.00020861,2]
[349671256,1737365449091,-659.34,0.00020861,2]
[349671257,1737365449101,-542.29,0.00020861,2]
[349671258,1737365449112,-656.17,0.00020861,2]
[349671259,1737365449121,-745.86,0.00020861,2]
[349671260,1737365449131,-500.0,0.00020861,2]
[349671261,1737365449140,-500.0,0.00020861,2]
[349671262,1737365449150,-500.0,0.00020861,2]
[349671263,1737365449160,-566.51,0.00020861,2]
[349671264,1737365449169,-500.0,0.00020861,2]
[349671265,1737365449179,-500.0,0.00020861,2]
[349671266,1737365449188,-500.0,0.00020861,2]
[349671267,1737365449198,-528.07,0.00020861,2]
[349671268,1737365449208,-500.0,0.00020861,2]
[349671269,1737365449218,-500.0,0.00020861,2]
[349671270,1737365449227,-775.99,0.00020861,2]
[349671271,1737365449237,-500.0,0.00020861,2]
[349671272,1737365449247,-500.0,0.00020861,2]
[349671273,1737365449257,-500.0,0.00020861,2]
[349671274,1737365449267,-500.0,0.00020861,2]
[349671275,1737365449279,-673.85,0.00020861,2]
[349671276,1737365449289,-500.0,0.00020861,2]
[349671277,1737365449299,-910.35,0.00020861,2]
[349671278,1737365449309,-550.45,0.00020861,2]
[349671279,1737365449318,-500.0,0.00020861,2]
[349671280,1737365449328,-500.0,0.00020861,2]
[349671281,1737365449338,-644.53,0.00020861,2]
[349671282,1737365449347,-500.0,0.00020861,2]
[349671283,1737365449359,-200.0,0.00020872,2]
[349671284,1737365449370,-518.31655284,0.00020873,2]
[349671285,1737365449379,-6243.9076903,0.00020887,2]
[349671286,1737365449389,-1062.37791901,0.000209,2]
[349671287,1737365449400,-50229.0459833,0.000209,2]
[349671288,1737365449826,-1526.1073,0.00020211,2]
[349671289,1737365449836,-500.0,0.0002031,2]
[349671290,1737365449846,-500.0,0.0002031,2]
[349671291,1737365449857,-290.36612,0.0002031,2]
[349671292,1737365449867,-500.0,0.00020311,2]
[349671293,1737365449877,-500.0,0.00020311,2]
[349671294,1737365449886,-500.0,0.00020311,2]
[349671295,1737365449896,-500.0,0.00020584,2]
[349671296,1737365449906,-216.26963031,0.00020584,2]
[349671297,1737365449915,-500.0,0.00020585,2]
[349671298,1737365449924,-500.0,0.00020585,2]
[349671299,1737365449935,-500.0,0.00020858,2]
[349671300,1737365449945,-500.0,0.00020859,2]
[349671301,1737365449955,-20327.82499103,0.000209,2]
[349671302,1737365449967,-1654.69800457,0.000209,2]
[349671303,1737365449980,-9553.22268389,0.000209,2]
[349671304,1737365449992,-57463.75399636,0.000209,2]
[349671305,1737365450013,-60771.45434085,0.000209,2]
[349671306,1737365450022,-160.528,0.000209,2]
[349671307,1737365450033,-163.46294674,0.000209,2]
[349671308,1737365450042,-1221.69496217,0.000209,2]
[349671309,1737365450052,-800.0,0.000209,7]
[349671310,1737365450062,-4107.30615555,0.000209,2]
[349671311,1737365450071,-6243.9076903,0.00020904,2]
[349671312,1737365450081,-200.0,0.00020906,2]
[349671313,1737365450091,-441.01597879,0.00020906,2]
[349671314,1737365450101,-441.01597879,0.00020909,2]
[349671315,1737365450114,-772.0,0.0002091,2]
[349671316,1737365450123,-441.01597879,0.00020911,2]
[349671317,1737365450133,-350.3055577,0.00020917,2]
[349671318,1737365450143,-6243.9076903,0.00020919,2]
[349671319,1737365450153,-369.20787983,0.00020921,2]
[349671320,1737365450163,-350.3055577,0.00020924,2]
[349671321,1737365450173,-350.3055577,0.00020942,2]
[349671322,1737365450183,-202.38831038,0.00020945,2]
[349671323,1737365450193,-6243.9076903,0.00020947,2]
[349671324,1737365450203,-621.35795537,0.00020973,2]
[349671325,1737365450212,-501.82071939,0.00020973,2]
[349671326,1737365450222,-502.25957672,0.00020973,2]
[349671327,1737365450233,-530.60580838,0.00020973,2]
[349671328,1737365450242,-517.37122321,0.00020973,2]
[349671329,1737365450252,-151.12462549,0.00020973,2]
[349671330,1737365450262,-516.28238252,0.00020973,2]
[349671331,1737365450275,-500.7351512,0.00020973,2]
[349671332,1737365450284,-179.438524,0.0002099,2]
[349671333,1737365450294,-214.41344537,0.00020999,2]
[349671334,1737365450303,-2316.0,0.00021,2]
[349671335,1737365450314,-66470.35156547,0.00021,2]
[349671336,1737365450359,-2897.21398373,0.00021,2]
[349671337,1737365450371,-2991.584672,0.00021,2]
[349671338,1737365679329,171.55,0.00012329,2]
[349671340,1737365904079,227.11,0.00010137,2]
[349671342,1737366132540,1119.85629996,0.00024,120]
[349671343,1737366433241,5770.19992552,0.00024,120]
[349671344,1737366574137,-167.83,0.00015704,2]
[349671345,1737366574159,-194.74164359,0.00017333,2]
[349671346,1737366574183,-617.42835641,0.00017433,2]
[349671356,1737366636890,-170.72,0.00015216,2]
[349671357,1737366636902,-287.36164359,0.00017433,2]
[349671358,1737366636912,-500.0,0.00018164,2]
[349671359,1737366636922,-1784.186301,0.00018906,2]
[349671360,1737366636933,-169.52,0.00019002,2]
[349671361,1737366636943,-1095.46,0.00019036,2]
[349671362,1737366636952,-162.71,0.00019049,2]
[349671363,1737366636962,-731.61,0.00019101,2]
[349671364,1737366636971,-426.41147469,0.00019117,2]
[349671365,1737366637220,-1093.58852531,0.00019117,2]
[349671366,1737366637229,-165.82,0.00019196,2]
[349671367,1737366637239,-1827.0,0.000193,3]
[349671368,1737366637249,-200.0,0.0001938,2]
[349671369,1737366637259,-150.0,0.00019397,2]
[349671370,1737366637269,-1000.0,0.00019401,2]
[349671371,1737366637278,-250.0,0.00019434,2]
[349671372,1737366637288,-595.48,0.00019463,30]
[349671373,1737366637297,-250.0,0.00019509,2]
[349671374,1737366637306,-452.35,0.00019531,2]
[349671375,1737366637316,-150.0,0.00019534,2]
[349671377,1737366637325,-301.04,0.00019534,2]
[349671379,1737366637334,-437.63,0.00019534,2]
[349671381,1737366637343,-981.55,0.00019534,2]
[349671383,1737366637353,-250.0,0.00019546,2]
[349671385,1737366637362,-300.0,0.00019577,2]
[349671386,1737366637371,-1982.76,0.00019578,2]
[349671387,1737366637381,-437.63,0.00019578,2]
[349671388,1737366637390,-150.0,0.00019578,2]
[349671389,1737366637400,-904.79,0.00019697,2]
[349671390,1737366637410,-5559.0,0.000197,5]
[349671391,1737366637419,-170.11,0.00019743,2]
[349671392,1737366637429,-160.619,0.0001995,2]
[349671393,1737366637438,-1178.235,0.00019978,2]
[349671394,1737366637447,-4197.1479,0.00020211,2]
[349671395,1737366637457,-1563.1758,0.00020211,2]
[349671396,1737366637466,-3506.8593,0.00020211,2]
[349671397,1737366637475,-2689.53187485,0.00020216,2]
[349671398,1737366637484,-1694.3305,0.000203,2]
[349671399,1737366637494,-308.36,0.0002031,2]
[349671400,1737366637503,-500.0,0.0002031,2]
[349671401,1737366637512,-500.0,0.0002031,2]
[349671402,1737366637521,-500.0,0.0002031,2]
[349671403,1737366637530,-500.0,0.0002031,2]
[349671404,1737366637539,-500.0,0.0002031,2]
[349671405,1737366637548,-500.0,0.0002031,2]
[349671406,1737366637557,-500.0,0.0002031,2]
[349671407,1737366637570,-500.0,0.0002031,2]
[349671408,1737366637580,-422.29471784,0.0002031,2]
[349671409,1737366637589,-500.0,0.0002031,2]
[349671410,1737366637599,-381.88477555,0.0002031,2]
[349671411,1737366637608,-500.0,0.0002031,2]
[349671412,1737366637618,-500.0,0.0002031,2]
[349671413,1737366637627,-500.0,0.0002031,2]
[349671414,1737366637637,-500.0,0.0002031,2]
[349671415,1737366637646,-500.0,0.0002031,2]
[349671416,1737366637656,-500.0,0.0002031,2]
[349671417,1737366637667,-500.0,0.0002031,2]
[349671418,1737366637676,-500.0,0.0002031,2]
[349671419,1737366637685,-500.0,0.0002031,2]
[349671420,1737366637694,-500.0,0.0002031,2]
[349671421,1737366637705,-500.0,0.0002031,2]
[349671422,1737366637715,-500.0,0.0002031,2]
[349671423,1737366637725,-517.5450727,0.0002031,2]
[349671424,1737366637735,-564.55392954,0.0002031,2]
[349671425,1737366637748,-600.88287881,0.0002031,2]
[349671426,1737366637758,-502.01208874,0.0002031,2]
[349671427,1737366637767,-500.0,0.0002031,2]
[349671428,1737366637777,-500.0,0.0002031,2]
[349671429,1737366637786,-563.65,0.0002031,2]
[349671430,1737366637795,-500.0,0.0002031,2]
[349671431,1737366637805,-500.0,0.0002031,2]
[349671432,1737366637815,-500.0,0.0002031,2]
[349671433,1737366637825,-617.14,0.0002031,2]
[349671434,1737366637834,-626.11,0.0002031,2]
[349671435,1737366637843,-500.0,0.0002031,2]
[349671436,1737366637853,-500.0,0.0002031,2]
[349671437,1737366637862,-500.0,0.0002031,2]
[349671438,1737366637871,-500.0,0.0002031,2]
[349671439,1737366637880,-500.0,0.0002031,2]
[349671440,1737366637890,-500.0,0.0002031,2]
[349671441,1737366637900,-500.0,0.0002031,2]
[349671442,1737366637910,-500.0,0.0002031,2]
[349671443,1737366637920,-500.0,0.0002031,2]
[349671444,1737366637930,-500.0,0.0002031,2]
[349671445,1737366637939,-500.0,0.0002031,2]
[349671446,1737366637948,-500.0,0.0002031,2]
[349671447,1737366637957,-500.0,0.0002031,2]
[349671448,1737366637966,-500.0,0.0002031,2]
[349671449,1737366637976,-301.78862807,0.0002031,2]
[349671450,1737366637985,-500.0,0.0002031,2]
[349671451,1737366637995,-500.0,0.0002031,2]
[349671452,1737366638004,-500.0,0.0002031,2]
[349671453,1737366638013,-500.0,0.0002031,2]
[349671454,1737366638023,-500.0,0.0002031,2]
[349671455,1737366638032,-500.0,0.0002031,2]
[349671456,1737366638041,-500.0,0.0002031,2]
[349671457,1737366638051,-500.0,0.0002031,2]
[349671458,1737366638061,-582.67050972,0.0002031,2]
[349671459,1737366638070,-673.08,0.0002031,2]
[349671460,1737366638080,-500.0,0.0002031,2]
[349671461,1737366638090,-500.0,0.0002031,2]
[349671462,1737366638099,-500.0,0.0002031,2]
[349671464,1737366638109,-500.0,0.0002031,2]
[349671466,1737366638118,-500.0,0.0002031,2]
[349671468,1737366638127,-500.0,0.0002031,2]
[349671470,1737366638136,-500.0,0.0002031,2]
[349671472,1737366638147,-500.0,0.0002031,2]
[349671473,1737366638157,-500.0,0.0002031,2]
[349671475,1737366638166,-500.0,0.0002031,2]
[349671477,1737366638176,-595.84,0.0002031,2]